lending/lending_fUSD_20240703
["ID","MTS","AMOUNT","RATE_DAILY","PERIOD"]
[330999629,1719999060352,-166.48789305,0.0002,2]
[330999630,1719999060362,-166.48789305,0.0002,2]
[330999631,1719999060372,-166.48789305,0.0002,2]
[330999632,1719999060381,-166.48789305,0.0002,2]
[330999633,1719999060391,-166.48789305,0.0002,2]
[330999634,1719999060403,-59.34738069,0.00020521,2]
[330999635,1719999060416,-295.48261931,0.00020521,2]
[330999636,1719999060426,-469.03546785,0.00021917,4]
[330999637,1719999060435,-500.0,0.00021917,4]
[330999638,1719999060445,-551.62079098,0.00021917,4]
[330999639,1719999060454,-407.00381895,0.00021917,4]
[330999640,1719999060463,-206.53673492,0.00021917,4]
[330999641,1719999060476,-293.46326508,0.00021917,4]
[330999642,1719999060487,-500.0,0.00021917,4]
[330999643,1719999060497,-500.0,0.00021917,4]
[330999644,1719999060507,-500.0,0.00021917,4]
[330999645,1719999060516,-500.0,0.00021917,4]
[330999646,1719999060525,-502.98184338,0.00021917,4]
[330999647,1719999060535,-500.0,0.00021917,4]
[330999648,1719999060544,-500.0,0.00021917,4]
[330999649,1719999060554,-500.0,0.00021917,4]
[330999650,1719999060563,-500.0,0.00021917,4]
[330999651,1719999060574,-500.0,0.00021917,4]
[330999652,1719999060583,-500.0,0.00021917,4]
[330999653,1719999060592,-500.0,0.00021917,4]
[330999654,1719999060601,-500.0,0.00021917,4]
[330999655,1719999060609,-500.0,0.00021917,4]
[330999656,1719999060617,-500.0,0.00021917,4]
[330999657,1719999060626,-500.0,0.00021917,4]
[330999658,1719999060634,-500.0,0.00021917,4]
[330999659,1719999060642,-500.0,0.00021917,4]
[330999660,1719999060656,-500.0,0.00021917,4]
[330999661,1719999060666,-500.0,0.00021917,4]
[330999662,1719999060675,-502.73627454,0.00021917,4]
[330999663,1719999060686,-500.0,0.00021917,4]
[330999664,1719999060695,-500.0,0.00021917,4]
[330999665,1719999060704,-500.0,0.00021917,4]
[330999666,1719999060714,-500.0,0.00021917,4]
[330999667,1719999060723,-500.0,0.00021917,4]
[330999668,1719999060732,-500.0,0.00021917,4]
[330999669,1719999060743,-500.0,0.00021917,4]
[330999670,1719999060752,-500.0,0.00021917,4]
[330999671,1719999060762,-500.0,0.00021917,4]
[330999672,1719999060771,-500.0,0.00021917,4]
[330999673,1719999060782,-500.0,0.00021917,4]
[330999674,1719999060792,-500.0,0.00021917,4]
[330999675,1719999060801,-505.47643424,0.00021917,4]
[330999676,1719999060811,-500.0,0.00021917,4]
[330999677,1719999060820,-500.0,0.00021917,4]
[330999678,1719999060830,-500.0,0.00021917,4]
[330999679,1719999060840,-500.0,0.00021917,4]
[330999680,1719999060850,-500.0,0.00021917,4]
[330999681,1719999060859,-500.0,0.00021917,4]
[330999682,1719999060869,-500.0,0.00021917,4]
[330999683,1719999060878,-151.0,0.00021917,2]
[330999684,1719999060889,-500.0,0.00021917,4]
[330999685,1719999060902,-151.0,0.00021917,2]
[330999686,1719999060911,-500.0,0.00021917,4]
[330999687,1719999060921,-500.0,0.00021917,4]
[330999688,1719999060930,-151.0,0.00021917,2]
[330999689,1719999060940,-500.0,0.00021917,4]
[330999690,1719999060950,-151.0,0.00021917,2]
[330999691,1719999060958,-500.0,0.00021917,4]
[330999692,1719999060968,-500.0,0.00021917,4]
[330999693,1719999060980,-332.60220346,0.00021917,4]
[330999694,1719999060990,-500.0,0.00021917,4]
[330999695,1719999060999,-258.26,0.00021917,4]
[330999696,1719999061009,-500.0,0.00021917,4]
[330999697,1719999061018,-258.26,0.00021917,4]
[330999698,1719999061027,-500.0,0.00021917,4]
[330999699,1719999061036,-500.0,0.00021917,4]
[330999700,1719999061046,-258.26,0.00021917,4]
[330999701,1719999061055,-500.0,0.00021917,4]
[330999702,1719999061065,-258.26,0.00021917,4]
[330999703,1719999061075,-500.0,0.00021917,4]
[330999704,1719999061084,-258.26,0.00021917,4]
[330999705,1719999061093,-502.84478197,0.00021917,4]
[330999706,1719999061102,-99.24032725,0.00021917,4]
[330999707,1719999061142,-166.48789305,0.0002,2]
[330999708,1719999061156,-63.80199783,0.00021917,4]
[330999709,1719999061165,-500.0,0.00021917,4]
[330999710,1719999061174,-258.26,0.00021917,4]
[330999711,1719999061186,-500.0,0.00021917,4]
[330999712,1719999061195,-500.0,0.00021917,4]
[330999713,1719999061204,-258.26,0.00021917,4]
[330999714,1719999061214,-500.0,0.00021917,4]
[330999715,1719999061223,-258.26,0.00021917,4]
[330999716,1719999061232,-500.0,0.00021917,4]
[330999717,1719999061241,-258.26,0.00021917,4]
[330999718,1719999061251,-500.0,0.00021917,4]
[330999719,1719999061259,-132.62342548,0.00021917,4]
[330999722,1719999190703,10000.0,0.00011199,2]
[330999723,1719999190727,10000.0,0.00011199,2]
[330999724,1719999190754,10000.0,0.00011199,2]
[330999725,1719999190779,5584.691284,0.00011199,2]
[330999726,1719999205602,4415.308716,0.00011199,2]
[330999727,1719999205625,10000.0,0.00011199,2]
[330999728,1719999205648,10000.0,0.00011199,2]
[330999729,1719999205671,10000.0,0.00011199,2]
[330999730,1719999205694,1169.382568,0.00011199,2]
[330999731,1719999217827,8830.617432,0.00011199,2]
[330999732,1719999217850,1183.39761798,0.00011199,2]
[330999740,1719999321751,1054.87579584,0.00011199,2]
[330999745,1719999341417,1266.16665698,0.00011199,2]
[330999748,1719999391620,6495.5599292,0.00011199,2]
[330999749,1719999391650,8080.96122674,0.00011199,2]
[330999750,1719999396239,788.1795791,0.00011199,2]
[330999753,1719999410391,675.88889108,0.00011199,2]
[330999754,1719999429583,454.97030308,0.00011199,2]
[330999755,1719999429606,10000.0,0.00011199,2]
[330999756,1719999429631,2833.62449322,0.00011199,2]
[330999757,1719999434731,227.12084219,0.00011199,2]
[330999758,1719999436779,155.57617524,0.00011199,2]
[330999763,1719999500491,308.2,0.00011199,2]
[330999765,1719999543710,328.82033738,0.00011199,2]
[330999767,1719999558127,456.16,0.00010998,2]
[330999768,1719999558639,1881.3049435,0.00011199,2]
[330999770,1719999626455,630.92934,0.00011733,2]
[330999771,1719999684637,723.49825474,0.00011199,2]
[330999772,1719999787238,155.0,0.00011199,2]
[330999773,1719999869075,151.0,0.00026,120]
[330999779,1720000012296,500.0,0.00011199,2]
[330999798,1720000233014,-341.68853004,0.00012343,2]
[330999799,1720000233027,-63.33146996,0.00012343,2]
[330999800,1720000233036,-200.0,0.00012361,2]
[330999801,1720000233046,-2154.75,0.00012369,2]
[330999802,1720000233055,-250.0,0.00012718,2]
[330999803,1720000233064,-150.0,0.00012778,2]
[330999804,1720000233073,-300.0,0.00012778,2]
[330999805,1720000233083,-714.56140867,0.00012779,2]
[330999807,1720000233094,-12557.15359133,0.00012779,2]
[330999808,1720000233104,-1641.15166096,0.00012779,2]
[330999809,1720000233115,-384.38674592,0.00012779,2]
[330999810,1720000233126,-46200.68907466,0.00012779,2]
[330999811,1720000233137,-3049.88511814,0.00012779,2]
[330999812,1720000233632,-3971.07024,0.00012779,2]
[330999813,1720000233644,-191852.81716032,0.00012779,2]
[330999814,1720000233653,-550.13,0.00012781,2]
[330999815,1720000233662,-550.13,0.00012816,2]
[330999816,1720000233671,-169.26,0.00012818,2]
[330999817,1720000233681,-250.0,0.00012818,2]
[330999818,1720000233690,-842.78,0.00012818,2]
[330999819,1720000233699,-550.13,0.00012851,2]
[330999820,1720000233708,-1012.69,0.0001286,2]
[330999821,1720000233718,-790.71,0.0001286,2]
[330999822,1720000233727,-499.99,0.0001286,2]
[330999823,1720000233736,-9131.94,0.00012869,2]
[330999824,1720000233745,-3439.57,0.00012869,2]
[330999825,1720000233754,-17874.33,0.00012869,2]
[330999826,1720000233764,-550.13,0.00012886,2]
[330999827,1720000233773,-703.69,0.00012916,2]
[330999828,1720000233783,-550.13,0.00012921,2]
[330999829,1720000233793,-438.28,0.00012946,2]
[330999830,1720000233803,-550.13,0.00012956,2]
[330999831,1720000233812,-550.13,0.00012991,2]
[330999832,1720000233821,-550.13,0.00013026,2]
[330999833,1720000233831,-550.13,0.00013061,2]
[330999834,1720000233840,-478.78,0.0001308,2]
[330999835,1720000233850,-2679.75,0.00013083,2]
[330999836,1720000233859,-550.13,0.00013096,2]
[330999837,1720000233869,-550.13,0.00013131,2]
[330999838,1720000233878,-23900.0,0.00013164,2]
[330999839,1720000233887,-9999.99,0.00013164,2]
[330999840,1720000233897,-1012.2,0.00013164,2]
[330999841,1720000233906,-626.37,0.00013164,2]
[330999842,1720000233915,-550.13,0.00013166,2]
[330999843,1720000233925,-550.13,0.00013201,2]
[330999844,1720000233934,-550.13,0.00013236,2]
[330999845,1720000233954,-456.16,0.00013262,2]
[330999846,1720000233964,-550.13,0.00013271,2]
[330999847,1720000233974,-550.13,0.00013306,2]
[330999848,1720000233984,-550.13,0.00013341,2]
[330999849,1720000233994,-550.13,0.00013376,2]
[330999850,1720000234003,-550.13,0.00013411,2]
[330999851,1720000234013,-550.13,0.00013446,2]
[330999852,1720000234023,-5445.83,0.00013516,2]
[330999853,1720000234033,-685.9373869,0.00013574,2]
[330999854,1720000234043,-777.81,0.00013699,2]
[330999855,1720000234053,-340.77,0.00013699,2]
[330999856,1720000234063,-516.57,0.00013699,2]
[330999857,1720000234073,-178.72,0.00013725,2]
[330999858,1720000234083,-191.7531182,0.0001379,2]
[330999859,1720000234093,-3078.12792832,0.00013799,2]
[330999860,1720000234103,-3078.12792831,0.00013799,2]
[330999861,1720000234113,-1841.57738798,0.0001387,2]
[330999862,1720000234123,-220.36,0.0001389,3]
[330999863,1720000234133,-235.68861418,0.00013898,2]
[330999864,1720000234143,-755.58438261,0.00013898,2]
[330999865,1720000234152,-343.23964424,0.00013898,2]
[330999866,1720000234162,-755.58438259,0.00013899,2]
[330999867,1720000234172,-755.58438259,0.000139,2]
[330999868,1720000234182,-180.91863003,0.00013979,2]
[330999869,1720000234191,-635221.16581432,0.00013989,2]
[330999870,1720000234205,-1331.32137545,0.00013989,2]
[330999871,1720000234216,-2411.95134433,0.00013989,2]
[330999872,1720000234228,-898.53028455,0.00013989,2]
[330999873,1720000234240,-1004.35381733,0.00013989,2]
[330999874,1720000234251,-250.33780553,0.00013989,2]
[330999875,1720000234263,-37639.9615844,0.00013989,2]
[330999876,1720000234279,-760.55939495,0.00013989,2]
[330999877,1720000234291,-570.09,0.00013989,2]
[330999878,1720000234303,-13537.84782577,0.00013989,2]
[330999879,1720000234313,-260.41175973,0.00013998,2]
[330999880,1720000234323,-133784.78302205,0.00013999,2]
[330999881,1720000234335,-15728.47517638,0.00013999,2]
[330999882,1720000234347,-965.41908988,0.00013999,2]
[330999883,1720000234361,-346.48303694,0.00013999,2]
[330999890,1720000238903,-573.2828905,0.00013999,2]
[330999891,1720000238916,-9881.99222486,0.00013999,2]
[330999892,1720000238929,-7768.1384,0.00013999,2]
[330999893,1720000238942,-7146.2938,0.00013999,2]
[330999894,1720000238955,-18261.65070178,0.00013999,2]
[330999895,1720000238967,-13286.60530161,0.00013999,2]
[330999896,1720000238980,-822.49017547,0.00013999,2]
[330999897,1720000238992,-441.0,0.00013999,2]
[330999898,1720000239004,-1023.5008851,0.00013999,2]
[330999899,1720000239016,-358.48667185,0.00013999,2]
[330999900,1720000239031,-10858.90753303,0.00013999,2]
[330999901,1720000239044,-399.70833916,0.00013999,2]
[330999902,1720000239056,-2853.5205604,0.00013999,2]
[330999903,1720000239069,-999.64112776,0.00013999,2]
[330999904,1720000239081,-603.45575644,0.00013999,2]
[330999905,1720000239094,-910.60655848,0.00013999,2]
[330999906,1720000239107,-7740.30932134,0.00013999,2]
[330999907,1720000239124,-532.64272712,0.00013999,2]
[330999908,1720000239137,-1866.07072538,0.00013999,2]
[330999909,1720000239150,-311023.14388503,0.00013999,2]
[330999910,1720000239159,-150.0,0.00014,2]
[330999911,1720000239169,-150.05642858,0.00014,2]
[330999912,1720000239180,-159957.25962874,0.00014,2]
[330999913,1720000239190,-420.0,0.00014017,2]
[330999914,1720000239199,-160.657,0.00014145,2]
[330999915,1720000239209,-160.657,0.00014209,2]
[330999916,1720000239218,-173.26,0.00014217,2]
[330999917,1720000239228,-15150.14,0.00014281,2]
[330999918,1720000239238,-235.68861415,0.0001452,2]
[330999919,1720000239248,-250.0,0.00014548,2]
[330999920,1720000239257,-3078.12792831,0.00014752,2]
[330999921,1720000239268,-317.26,0.00014904,4]
[330999922,1720000239282,-281.91,0.00014921,2]
[330999923,1720000239292,-283.21235355,0.00014999,2]
[330999924,1720000239301,-469.87051086,0.00014999,2]
[330999925,1720000239311,-500.0,0.00014999,2]
[330999926,1720000239322,-500.0,0.00014999,2]
[330999927,1720000239331,-500.0,0.00014999,2]
[330999928,1720000239340,-446.55419675,0.00014999,2]
[330999929,1720000239351,-1164874.8777427,0.00015,2]
[330999930,1720000239360,-151.0,0.00015,2]
[330999931,1720000239370,-151.0,0.00015,2]
[330999932,1720000239381,-151.0,0.00015,2]
[330999933,1720000239390,-151.0,0.00015,2]
[330999934,1720000239401,-151.0,0.00015,2]
[330999935,1720000239411,-151.0,0.00015,2]
[330999936,1720000239420,-5000.0,0.00015,2]
[330999937,1720000239430,-737.1110252,0.00015,2]
[330999938,1720000239440,-5878.0,0.00015014,2]
[330999939,1720000239450,-300.0,0.00015068,2]
[330999940,1720000239460,-1000.0,0.0001508,2]
[330999941,1720000239470,-461.10125874,0.00015096,2]
[330999942,1720000239480,-235.68861415,0.00015142,2]
[330999943,1720000239490,-587.0,0.00015375,2]
[330999944,1720000239500,-456.16,0.00015526,2]
[330999945,1720000239510,-235.68861415,0.00015763,2]
[330999946,1720000239519,-3078.12792831,0.00015787,2]
[330999947,1720000239528,-235.68861415,0.00016385,2]
[330999948,1720000239538,-300.0,0.00016438,2]
[330999949,1720000239548,-210431.457707,0.00016439,7]
[330999950,1720000239558,-192.04,0.00016712,2]
[330999951,1720000239568,-3078.12792831,0.00016823,2]
[330999952,1720000239578,-823.0,0.00016865,2]
[330999953,1720000239588,-1000.0,0.00016965,2]
[330999954,1720000239598,-288.6,0.00017464,2]
[330999955,1720000239608,-6130.64,0.00017464,2]
[330999956,1720000239617,-456.16,0.0001779,2]
[330999957,1720000239628,-3078.12792831,0.00017858,2]
[330999958,1720000239637,-288.6,0.00018337,2]
[330999959,1720000239647,-440.7438236,0.0001845,2]
[330999961,1720000239657,-1152.0,0.00018499,2]
[330999963,1720000239667,-3859.0,0.000185,3]
[330999965,1720000239677,-1000.0,0.0001885,2]
[330999967,1720000239687,-3078.12792831,0.00018894,2]
[330999969,1720000239697,-151.26,0.000189,2]
[330999971,1720000239707,-151.26,0.000189,2]
[330999973,1720000239716,-151.26,0.000189,2]
[330999975,1720000239726,-151.26,0.000189,2]
[330999977,1720000239735,-151.26,0.000189,2]
[330999979,1720000239744,-151.26,0.000189,2]
[330999981,1720000239754,-151.26,0.000189,2]
[330999984,1720000239766,-151.26,0.000189,2]
[330999986,1720000239777,-151.26,0.000189,2]
[330999987,1720000239787,-151.26,0.000189,2]
[330999989,1720000239796,-151.26,0.000189,2]
[330999991,1720000239807,-151.26,0.000189,2]
[330999993,1720000239817,-151.26,0.000189,2]
[330999996,1720000239828,-151.26,0.000189,2]
[330999997,1720000239838,-151.26,0.000189,2]
[331000000,1720000239848,-151.26,0.000189,2]
[331000002,1720000239859,-151.26,0.000189,2]
[331000004,1720000239868,-151.26,0.000189,2]
[331000006,1720000239878,-151.26,0.000189,2]
[331000008,1720000239887,-306.58272941,0.00019177,2]
[331000010,1720000239897,-250.0,0.00019178,2]
[331000012,1720000239907,-340.77,0.00019178,2]
[331000014,1720000239916,-288.6,0.0001921,2]
[331000016,1720000239926,-177.03,0.00019563,2]
[331000017,1720000239935,-151.13517006,0.00019701,4]
[331000020,1720000239945,-3078.12792831,0.00019929,2]
[331000022,1720000239955,-456.16,0.00020053,2]
[331000024,1720000239965,-288.6,0.00020083,2]
[331000026,1720000239975,-2015.72219998,0.000202,2]
[331000028,1720000239984,-1613.0,0.00020292,2]
[331000030,1720000239994,-301.55,0.00020421,2]
[331000032,1720000240003,-150.0,0.00020421,2]
[331000034,1720000240012,-318.6,0.00020421,2]
[331000036,1720000240021,-306.35,0.00020421,2]
[331000038,1720000240031,-150.0,0.00020421,2]
[331000040,1720000240041,-6089.58644383,0.00020432,2]
[331000042,1720000240050,-152.12653755,0.00020677,2]
[331000044,1720000240060,-158.40373204,0.00020698,2]
[331000046,1720000240069,-158.57281556,0.00020707,2]
[331000048,1720000240079,-1000.0,0.00020735,2]
[331000050,1720000240088,-154.94069591,0.00020759,2]
[331000052,1720000240098,-154.17138077,0.00020785,2]
[331000054,1720000240108,-154.17138077,0.00020797,2]
[331000056,1720000240118,-154.94069591,0.00020876,2]
[331000058,1720000240127,-154.17138077,0.00020877,2]
[331000060,1720000240137,-1041.29524398,0.000209,2]
[331000062,1720000240146,-171.2311072,0.000209,2]
[331000064,1720000240155,-154.94069591,0.00020919,2]
[331000066,1720000240165,-154.17138077,0.00020948,2]
[331000068,1720000240175,-288.6,0.00020957,2]
[331000070,1720000240184,-3078.12792831,0.00020965,2]
[331000072,1720000240194,-716.63369653,0.00021012,2]
[331000074,1720000240203,-160.49237674,0.00021224,2]
[331000076,1720000240212,-613.98,0.00021243,2]
[331000078,1720000240222,-528.42,0.00021243,2]
[331000080,1720000240231,-150.0,0.00021243,2]
[331000082,1720000240241,-150.0,0.00021243,2]
[331000084,1720000240251,-150.0,0.00021243,2]
[331000086,1720000240260,-528.42,0.00021243,2]
[331000088,1720000240270,-150.0,0.00021243,2]
[331000090,1720000240282,-150.0,0.00021243,2]
[331000092,1720000240292,-150.0,0.00021243,2]
[331000094,1720000240301,-528.42,0.00021243,2]
[331000096,1720000240311,-150.0,0.00021243,2]
[331000098,1720000240321,-354.83,0.00021243,2]
[331000100,1720000240330,-171.32,0.00021243,2]
[331000102,1720000240340,-528.42,0.00021243,2]
[331000104,1720000240350,-528.42,0.00021243,2]
[331000106,1720000240359,-150.0,0.00021243,2]
[331000108,1720000240370,-528.42,0.00021243,2]
[331000110,1720000240379,-528.42,0.00021243,2]
[331000112,1720000240389,-528.42,0.00021243,2]
[331000114,1720000240398,-150.0,0.00021243,2]
[331000116,1720000240407,-150.0,0.00021243,2]
[331000118,1720000240417,-150.0,0.00021243,2]
[331000120,1720000240426,-150.0,0.00021243,2]
[331000122,1720000240435,-166.65,0.00021243,2]
[331000124,1720000240444,-150.0,0.00021243,2]
[331000126,1720000240454,-158.24,0.00021243,2]
[331000128,1720000240463,-354.83,0.00021243,2]
[331000130,1720000240472,-164.85,0.00021243,2]
[331000132,1720000240482,-164.85,0.00021243,2]
[331000134,1720000240492,-152.12653755,0.00021268,2]
[331000136,1720000240501,-152.0,0.00021457,3]
[331000138,1720000240511,-158.57281556,0.00021495,2]
[331000140,1720000240520,-154.94069591,0.00021557,2]
[331000142,1720000240529,-204.18,0.00021644,2]
[331000144,1720000240539,-154.17138077,0.00021715,2]
[331000146,1720000240549,-500.0,0.00021742,2]
[331000148,1720000240559,-154.17138077,0.00021764,2]
[331000150,1720000240568,-154.17138077,0.00021804,2]
[331000152,1720000240578,-745.0,0.00021817,2]
[331000154,1720000240588,-1973.35162804,0.00021817,2]
[331000156,1720000240598,-155.23746038,0.00021824,2]
[331000158,1720000240607,-172.36615083,0.00021843,2]
[331000160,1720000240617,-581.79873449,0.0002187,2]
[331000162,1720000240626,-365.78699378,0.00021894,2]
[331000164,1720000240636,-496.0,0.000219,4]
[331000166,1720000240646,-257.0,0.000219,2]
[331000168,1720000240655,-751.0,0.000219,2]
[331000170,1720000240665,-158.40373204,0.00021902,2]
[331000172,1720000240674,-151.26,0.00021907,2]
[331000174,1720000240684,-151.26,0.00021907,2]
[331000176,1720000240693,-1269.0,0.0002191,2]
[331000178,1720000240702,-1648.0,0.0002191,2]
[331000180,1720000240712,-2825.8,0.0002191,2]
[331000182,1720000240721,-1976.0,0.0002191,2]
[331000184,1720000240730,-1973.35162794,0.00021915,2]
[331000186,1720000240740,-500.0,0.00021916,2]
[331000188,1720000240750,-866.36380997,0.00021916,2]
[331000189,1720000240759,-500.0,0.00021917,4]
[331000190,1720000240769,-482.24085716,0.00021917,4]
[331000191,1720000240779,-498.14328904,0.00021917,4]
[331000192,1720000240789,-500.0,0.00021917,4]
[331000193,1720000240799,-500.0,0.00021917,4]
[331000194,1720000240809,-500.0,0.00021917,4]
[331000195,1720000240818,-496.40567126,0.00021917,4]
[331000196,1720000240828,-500.0,0.00021917,4]
[331000197,1720000240837,-500.0,0.00021917,4]
[331000198,1720000240846,-500.0,0.00021917,4]
[331000199,1720000240855,-500.0,0.00021917,4]
[331000200,1720000240864,-500.0,0.00021917,4]
[331000201,1720000240874,-500.0,0.00021917,4]
[331000202,1720000240883,-500.0,0.00021917,4]
[331000203,1720000240892,-502.50848787,0.00021917,4]
[331000204,1720000240902,-500.0,0.00021917,4]
[331000205,1720000240912,-500.0,0.00021917,4]
[331000207,1720000240922,-500.0,0.00021917,4]
[331000209,1720000240931,-500.0,0.00021917,4]
[331000211,1720000240940,-500.0,0.00021917,4]
[331000213,1720000240950,-498.02815956,0.00021917,4]
[331000215,1720000240959,-500.0,0.00021917,4]
[331000217,1720000240968,-500.0,0.00021917,4]
[331000219,1720000240978,-500.0,0.00021917,4]
[331000221,1720000240987,-447.09244494,0.00021917,4]
[331000223,1720000240997,-500.0,0.00021917,4]
[331000226,1720000241006,-501.47122351,0.00021917,4]
[331000229,1720000241015,-500.0,0.00021917,4]
[331000231,1720000241025,-502.65377893,0.00021917,4]
[331000233,1720000241034,-500.0,0.00021917,4]
[331000235,1720000241044,-502.89174664,0.00021917,4]
[331000237,1720000241053,-500.0,0.00021917,4]
[331000239,1720000241062,-501.40623256,0.00021917,4]
[331000241,1720000241072,-500.0,0.00021917,4]
[331000243,1720000241081,-507.79177822,0.00021917,4]
[331000245,1720000241090,-514.9379902,0.00021917,4]
[331000247,1720000241099,-518.55649512,0.00021917,4]
[331000249,1720000241109,-500.0,0.00021917,4]
[331000251,1720000241118,-504.20585928,0.00021917,4]
[331000253,1720000241127,-500.0,0.00021917,4]
[331000255,1720000241137,-501.10203789,0.00021917,4]
[331000257,1720000241147,-500.0,0.00021917,4]
[331000258,1720000241156,-500.0,0.00021917,4]
[331000259,1720000241165,-502.4360795,0.00021917,4]
[331000260,1720000241175,-151.0,0.00021917,2]
[331000261,1720000241184,-151.0,0.00021917,2]
[331000262,1720000241193,-151.0,0.00021917,2]
[331000263,1720000241204,-500.0,0.00021917,4]
[331000264,1720000241213,-506.26242872,0.00021917,4]
[331000265,1720000241223,-151.0,0.00021917,2]
[331000266,1720000241233,-151.0,0.00021917,2]
[331000267,1720000241242,-500.0,0.00021917,4]
[331000268,1720000241251,-151.0,0.00021917,2]
[331000269,1720000241260,-505.06038693,0.00021917,4]
[331000270,1720000241270,-151.0,0.00021917,2]
[331000271,1720000241283,-151.0,0.00021917,2]
[331000272,1720000241292,-151.0,0.00021917,2]
[331000273,1720000241301,-500.0,0.00021917,4]
[331000274,1720000241310,-502.42372998,0.00021917,4]
[331000275,1720000241321,-151.0,0.00021917,2]
[331000276,1720000241330,-500.0,0.00021917,4]
[331000277,1720000241340,-151.0,0.00021917,2]
[331000278,1720000241349,-500.0,0.00021917,4]
[331000279,1720000241359,-170.947771,0.00021917,2]
[331000280,1720000241370,-503.83441522,0.00021917,4]
[331000281,1720000241379,-500.0,0.00021917,4]
[331000282,1720000241388,-505.27927653,0.00021917,4]
[331000283,1720000241398,-530.73,0.00021917,4]
[331000284,1720000241407,-530.73,0.00021917,4]
[331000285,1720000241416,-530.73,0.00021917,4]
[331000286,1720000241425,-500.0,0.00021917,4]
[331000287,1720000241434,-500.0,0.00021917,4]
[331000288,1720000241443,-508.58829455,0.00021917,4]
[331000289,1720000241453,-530.73,0.00021917,4]
[331000290,1720000241463,-530.73,0.00021917,4]
[331000291,1720000241472,-530.73,0.00021917,4]
[331000292,1720000241482,-500.0,0.00021917,4]
[331000293,1720000241491,-500.0,0.00021917,4]
[331000294,1720000241501,-530.73,0.00021917,4]
[331000295,1720000241510,-500.0,0.00021917,4]
[331000296,1720000241520,-530.73,0.00021917,4]
[331000297,1720000241529,-530.73,0.00021917,4]
[331000298,1720000241538,-530.73,0.00021917,4]
[331000299,1720000241548,-530.73,0.00021917,4]
[331000300,1720000241557,-530.73,0.00021917,4]
[331000301,1720000241566,-530.73,0.00021917,4]
[331000302,1720000241575,-530.73,0.00021917,4]
[331000303,1720000241584,-530.73,0.00021917,4]
[331000304,1720000241594,-530.73,0.00021917,4]
[331000305,1720000241603,-530.73,0.00021917,4]
[331000306,1720000241612,-500.0,0.00021917,4]
[331000307,1720000241621,-500.0,0.00021917,4]
[331000308,1720000241630,-524.32309962,0.00021917,4]
[331000309,1720000241639,-471.53235076,0.00021917,4]
[331000310,1720000241649,-500.0,0.00021917,4]
[331000311,1720000241658,-503.8542594,0.00021917,4]
[331000312,1720000241667,-501.75211069,0.00021917,4]
[331000313,1720000241678,-500.0,0.00021917,4]
[331000314,1720000241688,-501.68870279,0.00021917,4]
[331000315,1720000241698,-453.42347124,0.00021917,4]
[331000316,1720000241708,-502.55976594,0.00021917,4]
[331000317,1720000241719,-500.0,0.00021917,4]
[331000318,1720000241728,-500.0,0.00021917,4]
[331000319,1720000241737,-501.38335868,0.00021917,4]
[331000320,1720000241748,-503.17924282,0.00021917,4]
[331000321,1720000241757,-500.0,0.00021917,4]
[331000322,1720000241768,-500.0,0.00021917,4]
[331000323,1720000241778,-500.0,0.00021917,4]
[331000324,1720000241788,-500.0,0.00021917,4]